bitfinex/quotes_SOLUSD_20250912
["timestamp","ask_amount","ask_price","bid_price","bid_amount"]
[1757682839279,0.77,239.71,239.7,45.93559401]
[1757682841002,0.77,239.71,239.7,13.59559401]
[1757682841203,0.77,239.71,239.7,45.93559401]
[1757682841795,0.77,239.71,239.7,13.59559401]
[1757682842097,0.77,239.71,239.7,45.93559401]
[1757682842295,0.77,239.71,239.7,13.59559401]
[1757682842500,0.77,239.71,239.7,45.93559401]
[1757682843182,0.06,239.71,239.7,45.93559401]
[1757682843383,0.77,239.71,239.7,47.60361594]
[1757682843782,0.06,239.71,239.7,47.60361594]
[1757682845199,0.77,239.71,239.7,47.60361594]
[1757682845394,0.77,239.71,239.7,45.93559401]
[1757682845590,0.77,239.71,239.7,47.60368551]
[1757682846011,0.77,239.71,239.7,47.58368551]
[1757682846511,0.77,239.71,239.7,128.48368551]
[1757682846684,0.77,239.71,239.7,96.16368551]
[1757682846885,0.77,239.71,239.7,126.81559401]
[1757682847209,0.06,239.71,239.7,128.4836855]
[1757682847798,0.77,239.71,239.7,1.66809149]
[1757682848107,0.77,239.71,239.7,45.91559401]
[1757682850411,0.77,239.71,239.7,32.32]
[1757682851813,8.91621724,239.71,239.7,32.32]
[1757682852195,4.94179977,239.71,239.7,32.32]
[1757682853219,8.91621724,239.71,239.69,0.03]
[1757682853397,4.94179977,239.71,239.69,0.03]
[1757682853793,0.06,239.71,239.7,32.32]
[1757682854298,0.77,239.71,239.7,32.32]
[1757682855504,0.77,239.71,239.7,45.91559401]
[1757682855818,0.06,239.71,239.7,45.91559401]
[1757682857695,0.77,239.71,239.7,45.91559401]
[1757682859111,0.06,239.71,239.7,46.60559401]
[1757682859518,0.06,239.71,239.7,48.2734073]
[1757682859898,0.06,239.71,239.7,48.69059545]
[1757682862402,0.06,239.71,239.7,15.9534073]
[1757682862628,0.06,239.71,239.7,48.2734073]
[1757682863714,0.06,239.71,239.7,15.9534073]
[1757682863910,0.06,239.71,239.7,48.2734073]
[1757682865834,0.06,239.71,239.7,15.9534073]
[1757682866010,0.06,239.71,239.7,48.2734073]
[1757682866832,0.77,239.71,239.7,96.1634073]
[1757682867028,0.77,239.71,239.7,126.81559401]
[1757682867729,0.77,239.71,239.7,13.59559401]
[1757682867929,0.77,239.71,239.7,45.91559401]
[1757682869846,0.77,239.71,239.69,0.03]
[1757682870026,0.77,239.71,239.7,32.32]
[1757682870225,0.77,239.71,239.7,45.91559401]
[1757682872741,0.06,239.71,239.7,46.58559401]
[1757682873244,0.06,239.71,239.7,127.48559401]
[1757682879445,0.06,239.71,239.7,127.90278216]
[1757682879637,0.06,239.71,239.7,129.57059544]
[1757682880857,0.06,239.71,239.7,96.83340729]
[1757682881144,0.06,239.71,239.7,129.15340729]
[1757682881453,0.06,239.71,239.7,129.57059544]
[1757682886653,0.77,239.71,239.7,1.66781328]
[1757682886958,0.77,239.71,239.7,32.4]
[1757682887137,0.06,239.71,239.7,45.99559401]
[1757682888447,0.06,239.71,239.7,13.59559401]
[1757682888634,0.06,239.71,239.7,46.01559401]
[1757682890461,0.06,239.71,239.7,46.68559401]
[1757682890763,0.06,239.71,239.7,46.01559401]
[1757682892741,0.06,239.71,239.7,95.16559401]
[1757682892941,0.06,239.71,239.7,127.54559401]
[1757682893166,0.06,239.71,239.7,129.21347684]
[1757682893471,0.06,239.71,239.7,129.63066499]
[1757682895940,0.06,239.71,239.7,129.61066499]
[1757682896135,0.06,239.71,239.7,128.52347684]
[1757682896863,0.06,239.71,239.7,126.87559401]
[1757682897779,0.06,239.71,239.7,94.49559401]
[1757682897971,0.06,239.71,239.7,126.87559401]
[1757682899465,0.06,239.71,239.7,126.85559401]
[1757682899666,0.06,239.71,239.7,94.49559401]
[1757682899876,0.73,239.71,239.7,126.85559401]
[1757682900568,0.73,239.71,239.7,94.49559401]
[1757682901071,0.73,239.71,239.7,126.83559401]
[1757682901272,0.06,239.71,239.7,127.55559401]
[1757682901755,0.06,239.71,239.7,127.97278216]
[1757682902553,0.06,239.71,239.7,97.30052592]
[1757682902769,0.06,239.71,239.7,129.64052592]
[1757682903068,0.06,239.71,239.7,129.66052592]
[1757682904445,0.06,239.71,239.7,97.30052592]
[1757682904644,0.06,239.71,239.7,129.64052592]
[1757682906752,0.06,239.71,239.7,97.30052592]
[1757682907182,0.06,239.71,239.7,96.58052592]
[1757682907476,0.06,239.71,239.7,129.62052592]
[1757682908077,0.06,239.71,239.7,129.20333777]
[1757682908251,0.06,239.71,239.7,129.22333777]
[1757682909265,0.06,239.71,239.7,129.20333777]
[1757682910785,0.06,239.71,239.7,96.88333777]
[1757682911079,0.06,239.71,239.7,129.20333777]
[1757682911588,0.06,239.71,239.7,96.16333777]
[1757682911884,0.73,239.71,239.7,128.48333777]
[1757682912053,0.73,239.71,239.7,126.81559401]
[1757682912253,0.73,239.71,239.7,94.49559401]
[1757682912477,0.06,239.71,239.7,126.81559401]
[1757682914560,0.06,239.71,239.7,129.20354639]
[1757682915667,0.06,239.71,239.7,128.48354639]
[1757682916879,0.06,239.71,239.7,96.16354639]
[1757682917063,0.06,239.71,239.7,129.62073454]
[1757682918262,0.06,239.71,239.7,261.02073454]
[1757682918963,0.06,239.72,239.71,13.59559401]
[1757682919166,0.06,239.72,239.71,46.63559401]
[1757682919369,0.06,239.72,239.71,45.91559401]
[1757682919754,0.06,239.72,239.71,15.26326823]
[1757682920095,0.06,239.72,239.71,48.32326823]
[1757682920382,0.06,239.72,239.71,16.40043897]
[1757682920559,0.06,239.72,239.71,48.74043897]
[1757682921179,0.06,239.72,239.71,48.72043897]
[1757682922081,0.06,239.72,239.71,16.40043897]
[1757682922480,0.06,239.72,239.71,48.00043897]
[1757682922662,0.06,239.72,239.71,15.68043897]
[1757682922863,0.06,239.72,239.71,48.00043897]
[1757682923168,0.06,239.72,239.71,48.30326823]
[1757682923775,0.06,239.74,239.71,48.30326823]
[1757682923776,0.06,239.74,239.73,26.11559401]
[1757682924163,0.06,239.76,239.75,52.11559401]
[1757682924360,0.06,239.76,239.75,137.90985246]
[1757682924581,0.06,239.76,239.75,170.68985246]
[1757682924779,0.06,239.76,239.75,171.40985246]
[1757682924967,0.06,239.76,239.75,140.29683169]
[1757682926085,0.06,239.76,239.75,173.05683169]
[1757682926383,0.06,239.76,239.75,48.43967438]
[1757682926591,0.1,239.79,239.76,26.11559401]
[1757682926773,0.1,239.79,239.78,26.11559401]
[1757682926973,0.1,239.79,239.78,30.65275132]
[1757682927184,0.1,239.79,239.78,64.19275132]
[1757682927385,0.1,239.79,239.78,32.97952216]
[1757682927573,0.1,239.79,239.78,65.83952216]
[1757682927977,0.1,239.79,239.78,32.97952216]
[1757682928385,0.1,239.79,239.78,65.83952216]
[1757682928781,0.66,239.85,239.84,39.59559401]
[1757682929091,0.66,239.85,239.84,72.45559401]
[1757682929398,0.66,239.85,239.84,39.59559401]
[1757682929576,0.66,239.85,239.84,72.45559401]
[1757682930121,0.1,239.89,239.84,39.59559401]
[1757682930275,0.66,239.85,239.8,13.59559401]
[1757682930475,0.66,239.84,239.82,13.59559401]
[1757682930700,2.54434811,239.86,239.84,13.59559401]
[1757682930878,2.54434811,239.86,239.85,32.86]
[1757682931084,2.54434811,239.86,239.85,13.59559401]
[1757682931280,3.20434811,239.86,239.85,46.45559401]
[1757682931793,3.20434811,239.86,239.85,46.43559401]
[1757682932297,3.20434811,239.86,239.85,13.59559401]
[1757682932493,4.63248813,239.86,239.85,46.43559401]
[1757682932878,4.63248813,239.86,239.85,13.59559401]
[1757682933096,4.63248813,239.86,239.85,46.43559401]
[1757682933283,4.63248813,239.86,239.85,46.41559401]
[1757682933701,4.63248813,239.86,239.85,13.59559401]
[1757682933904,4.63248813,239.86,239.85,46.41559401]
[1757682934101,4.63248813,239.86,239.85,13.59559401]
[1757682934282,4.63248813,239.86,239.85,46.41559401]
[1757682934478,4.63248813,239.86,239.85,13.59559401]
[1757682935105,4.63248813,239.86,239.85,46.41559401]
[1757682935284,4.63248813,239.86,239.85,13.59559401]
[1757682935487,4.63248813,239.86,239.85,46.41559401]
[1757682935902,4.63248813,239.86,239.85,13.59559401]
[1757682936109,4.63248813,239.86,239.85,46.39559401]
[1757682936313,4.63248813,239.86,239.85,13.59559401]
[1757682936620,0.72,239.86,239.85,46.39559401]
[1757682937786,4.69248813,239.86,239.85,46.39559401]
[1757682938221,8.86158677,239.86,239.85,13.59559401]
[1757682938517,8.86158677,239.86,239.85,46.37559401]
[1757682938685,8.86158677,239.86,239.85,13.59559401]
[1757682938881,8.86158677,239.86,239.85,46.37559401]
[1757682939087,8.86158677,239.86,239.85,13.59559401]
[1757682939291,4.69248813,239.86,239.85,46.37559401]
[1757682939783,0.72,239.86,239.85,13.59559401]
[1757682940007,8.86158677,239.86,239.85,46.35559401]
[1757682940201,8.86158677,239.86,239.85,13.59559401]
[1757682940389,8.86158677,239.86,239.85,46.35559401]
[1757682940799,4.03248813,239.86,239.85,13.59559401]
[1757682941003,0.06,239.86,239.85,46.35559401]
[1757682941203,4.03248813,239.86,239.85,46.35559401]
[1757682941419,4.03248813,239.86,239.85,13.59559401]
[1757682941617,4.03248813,239.86,239.85,46.35559401]
[1757682942126,4.03248813,239.86,239.85,13.59559401]
[1757682942430,8.20158677,239.86,239.85,13.59559401]
[1757682942605,8.86158677,239.86,239.85,13.59559401]
[1757682943322,8.86158677,239.86,239.85,46.35559401]
[1757682943524,8.86158677,239.86,239.85,13.59559401]
[1757682944320,8.86158677,239.86,239.85,46.33559401]
[1757682945926,19.28433337,239.86,239.79,0.03]
[1757682946125,3.97248813,239.81,239.79,0.03]
[1757682946511,0.66,239.8,239.79,0.03]
[1757682947820,8.80262991,239.8,239.79,0.03]
[1757682954331,29.97248813,239.77,239.76,0.03]
[1757682954831,30.63248813,239.77,239.76,0.03]
[1757682955030,30.63248813,239.77,239.74,0.03]
[1757682955238,3.97248813,239.75,239.74,0.03]
[1757682955738,4.63248813,239.75,239.74,0.03]
[1757682956432,8.8034996,239.75,239.74,0.03]
[1757682958218,8.8034996,239.75,239.69,0.03]
[1757682958436,8.14436964,239.7,239.69,0.03]
[1757682958945,8.80436964,239.7,239.69,0.03]
[1757682960336,4.83188151,239.7,239.69,0.03]
[1757682960643,0.06,239.86,239.69,0.03]
[1757682960644,4.17171891,239.71,239.69,0.03]
[1757682960830,3.97248813,239.7,239.69,0.03]
[1757682961638,4.17153345,239.72,239.69,0.03]
[1757682961828,3.97248813,239.7,239.69,0.03]
[1757682962820,8.14436964,239.7,239.69,0.03]
[1757682963630,4.17188151,239.7,239.69,0.03]
[1757682963939,26.0,239.75,239.69,0.03]
[1757682964131,0.66,239.78,239.7,13.59559401]
[1757682964439,3.97248813,239.78,239.72,13.59559401]
[1757682964634,3.97248813,239.73,239.7,46.29559401]
[1757682965740,0.66,239.75,239.7,46.98559401]
[1757682965943,3.97248813,239.71,239.7,46.29559401]
[1757682966645,3.97248813,239.71,239.7,46.98559401]
[1757682967030,3.97248813,239.73,239.7,46.98559401]
[1757682967228,3.97248813,239.73,239.71,0.69]
[1757682967425,3.97248813,239.73,239.7,46.29559401]
[1757682967652,3.97248813,239.73,239.71,0.69]
[1757682968446,3.97248813,239.73,239.7,46.29559401]
[1757682968648,3.97248813,239.73,239.71,0.69]
[1757682968846,0.66,239.76,239.71,0.69]
[1757682969048,3.97248813,239.74,239.71,0.69]
[1757682969541,3.97248813,239.74,239.72,0.69]
[1757682970245,3.97248813,239.74,239.7,46.98559401]
[1757682970448,3.97248813,239.74,239.71,0.69]
[1757682971334,12.314383,239.84,239.71,0.69]
[1757682971335,3.97248813,239.76,239.72,14.28559401]
[1757682971647,4.83023705,239.8,239.73,0.69]
[1757682971836,4.83023705,239.8,239.74,32.64]
[1757682971837,3.97248813,239.76,239.74,32.64]
[1757682972639,0.66,239.81,239.75,14.28559401]
[1757682972928,12.314383,239.84,239.69,106.77]
[1757682972929,3.97248813,239.77,239.76,32.64]
[1757682973130,4.63248813,239.77,239.76,32.64]
[1757682973346,4.63248813,239.77,239.72,13.59559401]
[1757682973556,0.66,239.77,239.74,32.66]
[1757682973856,3.97248813,239.74,239.73,32.66]
[1757682974236,4.63248813,239.74,239.72,32.66]
[1757682974440,3.97248813,239.74,239.72,32.66]
[1757682974633,4.89085933,239.76,239.72,32.66]
[1757682974928,3.97248813,239.73,239.72,33.35]
[1757682975348,4.63248813,239.73,239.69,0.03]
[1757682975535,3.97248813,239.7,239.69,0.03]
[1757682976336,4.63248813,239.7,239.69,0.03]
[1757682976544,3.97248813,239.7,239.69,0.03]
[1757682977551,3.97248813,239.71,239.69,0.72]
[1757682979341,0.66,239.7,239.69,0.03]
[1757682980241,4.63248813,239.7,239.66,0.03]
[1757682980437,3.97248813,239.67,239.64,0.03]
[1757682980639,3.97248813,239.65,239.63,0.03]
[1757682981051,0.66,239.64,239.63,0.03]
[1757682981355,4.83292605,239.64,239.63,0.03]
[1757682981558,4.83292605,239.64,239.58,0.03]
[1757682981559,26.0,239.62,239.58,0.03]
[1757682981749,3.97248813,239.59,239.58,0.03]
[1757682982361,4.63248813,239.59,239.58,0.03]
[1757682983562,8.80628503,239.59,239.58,0.03]
[1757682984341,3.97248813,239.59,239.58,0.03]
[1757682985047,4.69248813,239.59,239.58,0.03]
[1757682986163,3.97248813,239.59,239.58,0.03]
[1757682986457,4.69248813,239.59,239.58,0.03]
[1757682988762,26.0,239.57,239.55,0.03]
[1757682988950,33.94497626,239.57,239.55,0.03]
[1757682989152,0.72,239.56,239.55,0.03]
[1757682989758,4.89431958,239.56,239.55,0.03]
[1757682991065,8.86680771,239.56,239.55,0.03]
[1757682991263,4.89431958,239.56,239.55,0.03]
[1757682991754,8.86680771,239.56,239.55,0.03]
[1757682992848,26.0,239.53,239.52,0.03]
[1757682993061,34.14733052,239.53,239.52,0.03]
[1757682993255,34.86733052,239.53,239.52,0.03]
[1757682993457,34.86733052,239.53,239.51,0.1]
[1757682993658,34.14733052,239.53,239.51,0.1]
[1757682993853,0.72,239.52,239.51,0.1]
[1757682994453,3.27076807,239.52,239.51,0.1]
[1757682994658,33.44578477,239.52,239.51,0.1]
[1757682996156,33.44578477,239.52,239.5,0.03]
[1757682996459,33.44578477,239.52,239.46,0.03]
[1757682996460,76.56332652,239.52,239.46,0.03]
[1757682996662,2.55076807,239.47,239.46,0.03]
[1757682996970,14.61255845,239.52,239.46,0.03]
[1757682997156,26.0,239.51,239.47,0.71]
[1757682997467,2.55076807,239.48,239.47,0.71]
[1757682997692,2.55076807,239.48,239.46,0.03]
[1757682997880,6.72665009,239.48,239.46,0.74]
[1757682998046,6.72665009,239.48,239.46,0.03]
[1757682999493,7.44665009,239.48,239.46,0.03]
[1757682999660,6.72665009,239.48,239.46,0.03]
[1757683002380,0.72,239.47,239.46,0.03]
[1757683002703,26.0,239.46,239.45,0.03]
[1757683002995,28.55076807,239.46,239.45,0.03]
[1757683003171,29.27076807,239.46,239.45,0.03]
[1757683004279,33.44683087,239.46,239.45,0.03]
[1757683005078,33.44683087,239.46,239.44,0.03]
[1757683005486,32.66,239.45,239.44,0.03]
[1757683005981,33.38,239.45,239.44,0.03]
[1757683006575,37.55623721,239.45,239.43,0.03]
[1757683006781,37.55623721,239.45,239.34,0.2]
[1757683006782,26.0,239.41,239.34,0.91]
[1757683006996,2.55076807,239.35,239.34,0.91]
[1757683007497,2.55076807,239.35,239.34,0.2]
[1757683008084,2.55076807,239.35,239.34,0.91]
[1757683008290,2.55076807,239.35,239.34,0.2]
[1757683008473,40.1087501,239.35,239.34,0.2]
[1757683008875,26.0,239.32,239.31,0.1]
[1757683009090,28.55076807,239.32,239.31,0.1]
[1757683009395,29.27076807,239.32,239.31,0.1]
[1757683009774,35.97076807,239.32,239.31,0.1]
[1757683010600,40.14927383,239.32,239.31,0.1]
[1757683011483,6.72927383,239.32,239.31,0.1]
[1757683011695,39.40927383,239.32,239.31,0.1]
[1757683012096,40.12927383,239.32,239.31,0.1]
[1757683012398,40.12927383,239.32,239.21,0.1]
[1757683012399,26.0,239.29,239.21,0.1]
[1757683012694,2.55076807,239.22,239.21,0.1]
[1757683014817,6.73102055,239.22,239.21,0.1]
[1757683015115,2.55076807,239.23,239.21,0.8]
[1757683015490,2.55076807,239.25,239.21,0.8]
[1757683016510,2.55076807,239.27,239.21,0.8]
[1757683016692,6.7309743,239.23,239.21,0.1]
[1757683017207,4.87020623,239.23,239.21,0.1]
[1757683017405,2.55076807,239.22,239.21,0.1]
[1757683018002,3.24076807,239.22,239.21,0.1]
[1757683018408,7.15845116,239.22,239.21,0.1]
[1757683018715,39.89845116,239.22,239.21,0.1]
[1757683018898,44.07870364,239.22,239.21,0.1]
[1757683019288,11.33870364,239.22,239.21,0.1]
[1757683019589,44.07870364,239.22,239.21,0.1]
[1757683020995,44.07870364,239.22,239.21,1e-08]
[1757683021193,11.33870364,239.22,239.21,1e-08]
[1757683021399,6.46845116,239.14,239.12,0.7]
[1757683021599,26.0,239.19,239.13,0.7]
[1757683021811,6.46845116,239.14,239.13,0.7]
[1757683022827,6.46845116,239.15,239.13,0.7]
[1757683022987,6.46845116,239.17,239.13,0.7]
[1757683023194,6.46845116,239.18,239.13,0.7]
[1757683023612,12.31927193,239.21,239.13,0.7]
[1757683023801,4.17990302,239.24,239.13,0.7]
[1757683023802,6.46845116,239.2,239.13,0.7]
[1757683024532,6.46845116,239.2,239.13,0.67]
[1757683024739,4.17902962,239.29,239.18,13.59559401]
[1757683024917,6.46845116,239.23,239.18,13.59559401]
[1757683025231,6.46845116,239.23,239.13,4.81259149]
[1757683025232,6.46845116,239.19,239.13,13.59559401]
[1757683025405,6.46845116,239.16,239.13,13.59559401]
[1757683025930,6.46845116,239.16,239.11,0.1]
[1757683026549,6.46845116,239.16,239.13,0.03]
[1757683026849,0.69,239.2,239.13,0.73]
[1757683027056,26.06,239.22,239.13,0.73]
[1757683027057,6.46845116,239.18,239.14,0.7]
[1757683027225,6.46845116,239.18,239.13,0.03]
[1757683027427,6.46845116,239.17,239.14,0.7]
[1757683027850,6.46845116,239.17,239.15,0.7]
[1757683028155,6.46845116,239.19,239.13,0.03]
[1757683028354,6.46845116,239.19,239.14,0.7]
[1757683028854,0.06,239.22,239.15,13.59559401]
[1757683028855,6.46845116,239.21,239.15,13.59559401]
[1757683029038,6.46845116,239.21,239.16,0.7]
[1757683029240,6.46845116,239.21,239.17,0.7]
[1757683029453,6.46845116,239.21,239.18,0.7]
[1757683029654,7.15845116,239.21,239.14,13.59559401]
[1757683029847,0.69,239.21,239.14,13.59559401]
[1757683030052,6.46845116,239.2,239.14,13.59559401]
[1757683030356,6.46845116,239.2,239.15,0.7]
[1757683030562,6.46845116,239.2,239.16,0.7]
[1757683030727,4.24026119,239.22,239.17,0.7]
[1757683030927,6.46845116,239.21,239.17,0.7]
[1757683031131,6.46845116,239.21,239.14,13.59559401]
[1757683031360,0.06,239.22,239.18,0.7]
[1757683031652,0.06,239.22,239.19,13.59559401]
[1757683031859,0.06,239.22,239.21,13.59559401]
[1757683032041,0.06,239.22,239.2,0.7]
[1757683032748,0.06,239.22,239.21,0.7]
[1757683033257,0.06,239.22,239.19,0.7]
[1757683033634,0.06,239.22,239.2,0.7]
[1757683033829,33.15845116,239.21,239.13,0.03]
[1757683034135,6.46845116,239.15,239.13,0.03]
[1757683034457,26.69,239.21,239.13,0.03]
[1757683034658,6.46845116,239.16,239.14,0.7]
[1757683036033,6.46845116,239.16,239.13,0.03]
[1757683036233,4.18093757,239.19,239.14,0.7]
[1757683036646,6.46845116,239.15,239.14,0.7]
[1757683037246,6.46845116,239.15,239.13,0.03]
[1757683037850,6.46845116,239.15,239.13,0.73]
[1757683038055,6.46845116,239.15,239.13,0.03]
[1757683038557,6.46845116,239.15,239.13,0.73]
[1757683038871,6.46845116,239.15,239.13,0.03]
[1757683041264,6.46845116,239.14,239.13,0.03]
[1757683041650,11.34010207,239.14,239.13,0.03]
[1757683042842,10.65010207,239.14,239.13,0.03]
[1757683043049,6.46845116,239.14,239.13,0.03]
[1757683044560,6.46845116,239.16,239.13,0.73]
[1757683044868,6.52845116,239.16,239.13,0.73]
[1757683045040,6.52845116,239.16,239.13,32.95]
[1757683045241,0.06,239.16,239.15,13.59559401]
[1757683045449,0.06,239.16,239.15,14.25559401]
[1757683045648,0.06,239.16,239.15,47.15559401]
[1757683045845,0.06,239.16,239.15,47.17559401]
[1757683046950,0.06,239.16,239.15,47.15559401]
[1757683047145,0.06,239.16,239.15,14.25559401]
[1757683047344,0.06,239.16,239.15,47.15559401]
[1757683048048,0.06,239.16,239.15,47.99188922]
[1757683051958,0.06,239.16,239.15,128.89188922]
[1757683053743,0.06,239.16,239.15,272.81188922]
[1757683054176,0.06,239.16,239.15,274.48318678]
[1757683054954,0.06,239.19,239.18,39.59559401]
[1757683055154,0.06,239.19,239.18,72.45559401]
[1757683055343,0.06,239.19,239.18,73.11559401]
[1757683055753,0.06,239.19,239.18,41.92675191]
[1757683055970,0.06,239.19,239.18,72.45559401]
[1757683056558,0.06,239.19,239.18,13.59559401]
[1757683056868,0.72,239.19,239.18,13.59559401]
[1757683057050,0.72,239.19,239.18,46.45559401]
[1757683057790,0.06,239.19,239.18,46.45559401]
[1757683058855,0.06,239.19,239.18,47.11559401]
[1757683059054,0.06,239.27,239.22,12.54]
[1757683059259,0.06,239.27,239.24,39.59559401]
[1757683059553,0.06,239.27,239.24,72.65559401]
[1757683059757,0.06,239.27,239.24,40.25559401]
[1757683060365,0.06,239.27,239.24,73.31559401]
[1757683061267,0.06,239.27,239.24,40.25559401]
[1757683061460,0.06,239.27,239.24,73.31559401]
[1757683061769,0.06,239.27,239.24,39.59559401]
[1757683061968,0.06,239.27,239.24,72.63559401]
[1757683062274,0.06,239.27,239.24,39.59559401]
[1757683062649,0.06,239.27,239.24,72.61559401]
[1757683062952,0.06,239.27,239.24,39.59559401]
[1757683063166,0.06,239.27,239.24,72.61559401]
[1757683063559,0.06,239.27,239.24,39.59559401]
[1757683063963,0.06,239.27,239.24,72.61559401]
[1757683064170,0.06,239.27,239.24,73.45157461]
[1757683065060,0.06,239.27,239.24,74.09157461]
[1757683065258,0.06,239.27,239.24,41.09157461]
[1757683065461,0.06,239.27,239.24,74.09157461]
[1757683065773,0.06,239.27,239.24,40.25559401]
[1757683066166,0.06,239.27,239.24,72.57559401]
[1757683067070,0.06,239.27,239.24,73.41157461]
[1757683067273,0.06,239.27,239.24,74.07157461]
[1757683067454,0.06,239.27,239.24,41.09157461]
[1757683067657,0.06,239.27,239.24,74.07157461]
[1757683068870,0.06,239.27,239.26,13.59559401]
[1757683069082,0.06,239.27,239.26,46.57559401]
[1757683069278,0.06,239.27,239.26,46.55559401]
[1757683069584,0.06,239.27,239.26,72.55559401]
[1757683071070,0.06,239.27,239.26,39.59559401]
[1757683071463,0.06,239.27,239.26,72.55559401]
[1757683074673,0.06,239.27,239.26,128.05559401]
[1757683077481,0.06,239.27,239.26,127.33559401]
[1757683077782,0.76,239.27,239.26,120.43559401]
[1757683077970,0.76,239.27,239.26,153.35559401]
[1757683078370,0.06,239.27,239.26,120.43559401]
[1757683078575,0.76,239.27,239.26,153.35559401]
[1757683079188,0.76,239.27,239.26,120.43559401]
[1757683079368,0.76,239.27,239.26,153.35559401]
[1757683079871,0.76,239.27,239.26,120.43559401]
[1757683080181,0.76,239.27,239.26,153.35559401]
[1757683080370,0.06,239.27,239.26,153.35559401]
[1757683081376,0.06,239.27,239.26,153.33559401]
[1757683082567,0.06,239.27,239.26,153.31559401]
[1757683082769,0.06,239.27,239.26,154.00559401]
[1757683083394,0.06,239.27,239.26,128.00559401]
[1757683083579,0.06,239.27,239.26,95.12559401]
[1757683083780,0.06,239.27,239.26,127.33559401]
[1757683085072,0.06,239.27,239.26,94.43559401]
[1757683085277,0.06,239.27,239.26,127.33559401]
[1757683086889,0.76,239.27,239.26,94.43559401]
[1757683087201,0.76,239.27,239.26,127.31559401]
[1757683087495,0.76,239.27,239.26,94.43559401]
[1757683087700,0.76,239.27,239.26,127.29559401]
[1757683088488,0.06,239.27,239.26,94.43559401]
[1757683088705,0.06,239.27,239.26,127.29559401]
[1757683089069,0.06,239.27,239.26,127.98559401]
[1757683089475,0.06,239.27,239.26,259.38559401]
[1757683092910,0.06,239.3,239.29,39.59559401]
[1757683093076,0.06,239.3,239.29,153.21559401]
[1757683093894,0.06,239.3,239.29,120.37559401]
[1757683094084,0.06,239.3,239.29,153.19559401]
[1757683094702,0.06,239.3,239.29,153.88559401]
[1757683094904,0.06,239.3,239.29,153.19559401]
[1757683100589,0.06,239.3,239.29,120.37559401]
[1757683100909,0.76,239.3,239.29,153.13559401]
[1757683101198,0.76,239.3,239.29,127.13559401]
[1757683104205,0.76,239.3,239.29,94.37559401]
[1757683104404,0.76,239.3,239.29,127.11559401]
[1757683109088,0.06,239.3,239.29,46.33559401]
[1757683109489,0.77,239.3,239.29,13.59559401]
[1757683109899,0.77,239.3,239.29,46.31559401]
[1757683111411,0.06,239.3,239.29,46.31559401]
[1757683112916,0.77,239.3,239.29,32.7]
[1757683115008,0.06,239.3,239.29,32.7]
[1757683115201,0.06,239.3,239.27,80.93]
[1757683115403,0.06,239.3,239.28,32.68]
[1757683115790,0.06,239.3,239.29,14.29559401]
[1757683116191,0.06,239.3,239.29,13.59559401]
[1757683116612,0.06,239.3,239.29,14.29559401]
[1757683118122,0.06,239.3,239.29,32.68]
[1757683118300,0.77,239.3,239.29,46.27559401]
[1757683118502,0.06,239.3,239.29,46.27559401]
[1757683119200,0.06,239.3,239.29,127.17559401]
[1757683120999,0.60389397,239.35,239.3,13.59559401]
[1757683121200,0.60389397,239.35,239.31,32.68]
[1757683122107,0.1,239.39,239.34,39.59559401]
[1757683122303,0.1,239.39,239.36,13.59559401]
[1757683122510,0.1,239.39,239.38,13.59559401]
[1757683123417,0.1,239.39,239.36,0.7]
[1757683123623,0.1,239.39,239.38,13.59559401]